[Event "IV Elllobregat Open Chess Tmnt"]
[Site "Sant Boi de Llobregat, Spain"]
[Date "2023.12.02"]
[Round "3.50"]
[White "Le Goff, Ronan"]
[Black "Fromm, Marius"]
[Result "0-1"]
[TimeControl "90min/40moves + 15min/end + 30sec from move 1"]
[WhiteFideId "612073"]
[BlackFideId "12993190"]
[WhiteElo "2278"]
[BlackElo "2437"]

1. d4 {[%clk 01:30:55]} {[%emt 00:00:04]} d5 {[%clk 01:30:49]} {[%emt
00:00:12]} 2. Nf3 {[%clk 01:31:16]} {[%emt 00:00:09]} Nc6 {[%clk 01:31:07]}
{[%emt 00:00:13]} 3. Bf4 {[%clk 01:29:56]} {[%emt 00:01:49]} Bg4 {[%clk
01:30:06]} {[%emt 00:01:30]} 4. h3 {[%clk 01:26:59]} {[%emt 00:03:28]} Bxf3
{[%clk 01:29:19]} {[%emt 00:01:17]} 5. exf3 {[%clk 01:27:07]} {[%emt 00:00:19]}
e6 {[%clk 01:29:24]} {[%emt 00:00:28]} 6. c3 {[%clk 01:21:34]} {[%emt
00:06:03]} Bd6 {[%clk 01:27:58]} {[%emt 00:01:56]} 7. Bxd6 {[%clk 01:07:14]}
{[%emt 00:14:49]} Qxd6 {[%clk 01:28:09]} {[%emt 00:00:19]} 8. Bb5 {[%clk
01:04:30]} {[%emt 00:03:14]} Nge7 {[%clk 01:27:28]} {[%emt 00:01:11]} 9. O-O
{[%clk 01:04:36]} {[%emt 00:00:24]} O-O-O {[%clk 01:20:02]} {[%emt 00:07:57]}
10. Nd2 {[%clk 01:03:13]} {[%emt 00:01:52]} g5 {[%clk 01:17:52]} {[%emt
00:02:41]} 11. Nb3 {[%clk 00:56:36]} {[%emt 00:07:06]} h5 {[%clk 01:16:55]}
{[%emt 00:01:28]} 12. Nc5 {[%clk 00:46:54]} {[%emt 00:10:12]} Rdg8 {[%clk
01:16:36]} {[%emt 00:00:48]} 13. Bxc6 {[%clk 00:42:21]} {[%emt 00:05:03]} Nxc6
{[%clk 01:15:54]} {[%emt 00:01:13]} 14. Nd3 {[%clk 00:39:20]} {[%emt 00:03:31]}
g4 {[%clk 01:02:48]} {[%emt 00:13:36]} 15. h4 {[%clk 00:37:31]} {[%emt
00:02:18]} g3 {[%clk 00:59:56]} {[%emt 00:03:22]} 16. Qd2 {[%clk 00:34:18]}
{[%emt 00:03:43]} Ne7 {[%clk 00:59:12]} {[%emt 00:01:16]} 17. Qf4 {[%clk
00:30:12]} {[%emt 00:04:35]} Nf5 {[%clk 00:58:58]} {[%emt 00:00:44]} 18. fxg3
{[%clk 00:25:23]} {[%emt 00:05:19]} Rxg3 {[%clk 00:58:32]} {[%emt 00:00:56]} 19.
Rae1 {[%clk 00:09:04]} {[%emt 00:16:49]} Rhg8 {[%clk 00:56:52]} {[%emt
00:02:11]} 20. Re2 {[%clk 00:06:44]} {[%emt 00:02:49]} Qe7 {[%clk 00:52:54]}
{[%emt 00:04:28]} 21. Ne5 {[%clk 00:01:55]} {[%emt 00:05:19]} Nxh4 {[%clk
00:44:04]} {[%emt 00:09:21]} 22. Rff2 {[%clk 00:01:24]} {[%emt 00:01:00]} Nf5
{[%clk 00:40:40]} {[%emt 00:03:53]} 23. Nc6 {[%clk 00:01:13]} {[%emt 00:00:42]}
Qe8 {[%clk 00:40:37]} {[%emt 00:00:33]} 24. Ne5 {[%clk 00:00:33]} {[%emt
00:01:09]} Kb8 {[%clk 00:37:15]} {[%emt 00:03:52]} 25. b3 {[%clk 00:00:55]}
{[%emt 00:00:09]} R3g7 {[%clk 00:35:24]} {[%emt 00:02:21]} 26. Rc2 {[%clk
00:00:35]} {[%emt 00:00:49]} f6 {[%clk 00:33:22]} {[%emt 00:02:32]} 27. Nd3
{[%clk 00:00:57]} {[%emt 00:00:08]} h4 {[%clk 00:33:48]} {[%emt 00:00:05]} 28.
c4 {[%clk 00:01:12]} {[%emt 00:00:15]} Qh5 {[%clk 00:28:44]} {[%emt 00:05:34]}
29. cxd5 {[%clk 00:01:00]} {[%emt 00:00:41]} exd5 {[%clk 00:29:13]} {[%emt
00:00:01]} 30. Nc5 {[%clk 00:00:53]} {[%emt 00:00:37]} h3 {[%clk 00:27:39]}
{[%emt 00:02:04]} 31. Qh2 {[%clk 00:00:34]} {[%emt 00:00:48]} Nxd4 {[%clk
00:27:22]} {[%emt 00:00:47]} 0-1

[Event "IV Elllobregat Open Chess Tmnt"]
[Site "Sant Boi de Llobregat, Spain"]
[Date "2023.12.02"]
[Round "3.51"]
[White "Movsziszian, Karen"]
[Black "Wahedi, Ahmad Siar"]
[Result "0-1"]
[TimeControl "90min/40moves + 15min/end + 30sec from move 1"]
[WhiteFideId "13301152"]
[BlackFideId "4651260"]
[WhiteElo "2435"]
[BlackElo "2275"]

1. g3 {[%clk 01:30:57]} {[%emt 00:00:02]} d5 {[%clk 01:27:54]} {[%emt
00:03:07]} 2. Nf3 {[%clk 01:30:37]} {[%emt 00:00:50]} g6 {[%clk 01:28:14]}
{[%emt 00:00:10]} 3. Bg2 {[%clk 01:30:50]} {[%emt 00:00:16]} Bg7 {[%clk
01:28:39]} {[%emt 00:00:05]} 4. O-O {[%clk 01:31:13]} {[%emt 00:00:07]} e5
{[%clk 01:28:52]} {[%emt 00:00:19]} 5. d3 {[%clk 01:31:41]} {[%emt 00:00:01]}
Nc6 {[%clk 01:29:11]} {[%emt 00:00:11]} 6. c3 {[%clk 01:31:04]} {[%emt
00:01:06]} h6 {[%clk 01:24:44]} {[%emt 00:04:57]} 7. e4 {[%clk 01:30:04]}
{[%emt 00:01:31]} dxe4 {[%clk 01:22:48]} {[%emt 00:02:26]} 8. dxe4 {[%clk
01:30:30]} {[%emt 00:00:04]} Qxd1 {[%clk 01:23:11]} {[%emt 00:00:07]} 9. Rxd1
{[%clk 01:30:55]} {[%emt 00:00:04]} Nf6 {[%clk 01:23:33]} {[%emt 00:00:08]} 10.
Re1 {[%clk 01:28:57]} {[%emt 00:02:27]} Be6 {[%clk 01:21:09]} {[%emt 00:02:55]}
11. b4 {[%clk 01:28:40]} {[%emt 00:00:45]} Nd7 {[%clk 01:19:52]} {[%emt
00:01:49]} 12. a4 {[%clk 01:25:07]} {[%emt 00:04:02]} a5 {[%clk 01:17:40]}
{[%emt 00:02:43]} 13. b5 {[%clk 01:25:19]} {[%emt 00:00:19]} Ne7 {[%clk
01:13:37]} {[%emt 00:04:32]} 14. Be3 {[%clk 01:21:20]} {[%emt 00:04:27]} Nc8
{[%clk 01:07:17]} {[%emt 00:06:52]} 15. Nfd2 {[%clk 01:18:34]} {[%emt
00:03:14]} Nd6 {[%clk 01:05:13]} {[%emt 00:02:36]} 16. Na3 {[%clk 00:59:02]}
{[%emt 00:20:01]} b6 {[%clk 00:59:55]} {[%emt 00:05:48]} 17. Bf1 {[%clk
00:56:01]} {[%emt 00:03:31]} Bf8 {[%clk 00:57:28]} {[%emt 00:02:57]} 18. Nac4
{[%clk 00:52:58]} {[%emt 00:03:31]} Nb7 {[%clk 00:55:43]} {[%emt 00:02:18]} 19.
f4 {[%clk 00:51:40]} {[%emt 00:01:48]} Bc5 {[%clk 00:52:37]} {[%emt 00:03:37]}
20. f5 {[%clk 00:45:13]} {[%emt 00:06:56]} Bxc4 {[%clk 00:49:34]} {[%emt
00:03:32]} 21. Bxc4 {[%clk 00:44:13]} {[%emt 00:01:30]} Bxe3+ {[%clk 00:43:42]}
{[%emt 00:06:23]} 22. Rxe3 {[%clk 00:41:01]} {[%emt 00:03:42]} Nd6 {[%clk
00:44:05]} {[%emt 00:00:07]} 23. Bd5 {[%clk 00:40:28]} {[%emt 00:01:02]} Rd8
{[%clk 00:43:15]} {[%emt 00:01:20]} 24. fxg6 {[%clk 00:33:14]} {[%emt
00:07:44]} fxg6 {[%clk 00:43:34]} {[%emt 00:00:11]} 25. Nf3 {[%clk 00:31:17]}
{[%emt 00:02:26]} Ke7 {[%clk 00:41:57]} {[%emt 00:02:08]} 26. Bc6 {[%clk
00:28:56]} {[%emt 00:02:50]} Nc4 {[%clk 00:40:46]} {[%emt 00:01:42]} 27. Re2
{[%clk 00:29:07]} {[%emt 00:00:19]} Nf6 {[%clk 00:40:28]} {[%emt 00:00:49]} 28.
Rf1 {[%clk 00:27:00]} {[%emt 00:02:36]} g5 {[%clk 00:40:22]} {[%emt 00:00:36]}
29. h4 {[%clk 00:22:11]} {[%emt 00:05:19]} Rd3 {[%clk 00:38:16]} {[%emt
00:02:36]} 30. Bd5 {[%clk 00:06:10]} {[%emt 00:16:32]} Nxd5 {[%clk 00:35:42]}
{[%emt 00:03:04]} 31. exd5 {[%clk 00:06:38]} {[%emt 00:00:02]} Kd6 {[%clk
00:36:02]} {[%emt 00:00:09]} 32. Re4 {[%clk 00:05:41]} {[%emt 00:01:27]} Rxc3
{[%clk 00:34:19]} {[%emt 00:02:13]} 33. hxg5 {[%clk 00:02:15]} {[%emt
00:03:56]} hxg5 {[%clk 00:31:47]} {[%emt 00:03:03]} 34. Rfe1 {[%clk 00:02:44]}
Rxf3 {[%clk 00:25:24]} {[%emt 00:06:52]} 35. Rxc4 {[%clk 00:03:09]} {[%emt
00:00:05]} Rxg3+ {[%clk 00:24:36]} {[%emt 00:01:19]} 36. Kf2 {[%clk 00:03:38]}
Rd3 {[%clk 00:24:54]} {[%emt 00:00:11]} 37. Rc6+ {[%clk 00:04:02]} {[%emt
00:00:07]} Kd7 {[%clk 00:23:54]} {[%emt 00:01:30]} 38. Rxe5 {[%clk 00:04:28]}
{[%emt 00:00:04]} Rh2+ {[%clk 00:24:11]} {[%emt 00:00:13]} 39. Kg1 {[%clk
00:02:33]} {[%emt 00:02:26]} Ra2 {[%clk 00:24:32]} {[%emt 00:00:08]} 40. Rc1
{[%clk 00:17:58]} {[%emt 00:00:04]} Rg3+ {[%clk 00:38:03]} {[%emt 00:02:00]} 41.
Kf1 {[%clk 00:18:24]} {[%emt 00:00:01]} Rgg2 {[%clk 00:35:33]} {[%emt
00:03:02]} 42. Rf5 {[%clk 00:15:16]} {[%emt 00:03:39]} Rh2 {[%clk 00:35:21]}
{[%emt 00:00:42]} 43. Kg1 {[%clk 00:15:44]} {[%emt 00:00:01]} Rag2+ {[%clk
00:35:35]} {[%emt 00:00:17]} 44. Kf1 {[%clk 00:16:13]} {[%emt 00:00:01]} Rh1+
{[%clk 00:35:56]} {[%emt 00:00:09]} 45. Kxg2 {[%clk 00:16:42]} {[%emt
00:00:01]} Rxc1 {[%clk 00:36:19]} {[%emt 00:00:06]} 46. Rxg5 {[%clk 00:15:47]}
{[%emt 00:01:25]} Rc4 {[%clk 00:36:41]} {[%emt 00:00:08]} 47. Rg6 {[%clk
00:15:31]} {[%emt 00:00:46]} Rxa4 {[%clk 00:35:28]} {[%emt 00:01:44]} 48. d6
{[%clk 00:15:59]} {[%emt 00:00:01]} Rb4 {[%clk 00:35:43]} {[%emt 00:00:16]} 49.
dxc7 {[%clk 00:16:06]} {[%emt 00:00:24]} Kxc7 {[%clk 00:35:42]} {[%emt
00:00:31]} 50. Rg5 {[%clk 00:16:29]} {[%emt 00:00:06]} Kd6 {[%clk 00:35:50]}
{[%emt 00:00:22]} 51. Kf3 {[%clk 00:16:56]} {[%emt 00:00:03]} Rd4 {[%clk
00:36:11]} {[%emt 00:00:08]} 0-1

[Event "IV Elllobregat Open Chess Tmnt"]
[Site "Sant Boi de Llobregat, Spain"]
[Date "2023.12.02"]
[Round "3.52"]
[White "Sherman, Raem"]
[Black "Malek, Jan"]
[Result "1-0"]
[TimeControl "90min/40moves + 15min/end + 30sec from move 1"]
[WhiteFideId "2822288"]
[BlackFideId "21864080"]
[WhiteElo "2278"]
[BlackElo "2434"]

1. e4 {[%clk 01:30:12]} {[%emt 00:00:46]} c5 {[%clk 01:30:52]} {[%emt
00:00:08]} 2. Nf3 {[%clk 01:30:27]} {[%emt 00:00:15]} d6 {[%clk 01:31:16]}
{[%emt 00:00:07]} 3. d4 {[%clk 01:30:53]} {[%emt 00:00:04]} cxd4 {[%clk
01:31:40]} {[%emt 00:00:06]} 4. Nxd4 {[%clk 01:31:18]} {[%emt 00:00:04]} Nf6
{[%clk 01:32:03]} {[%emt 00:00:07]} 5. Nc3 {[%clk 01:31:43]} {[%emt 00:00:05]}
Nc6 {[%clk 01:32:26]} {[%emt 00:00:07]} 6. Bg5 {[%clk 01:30:13]} {[%emt
00:01:59]} e6 {[%clk 01:31:53]} {[%emt 00:01:04]} 7. Qd3 {[%clk 01:28:53]}
{[%emt 00:01:49]} Bd7 {[%clk 01:29:58]} {[%emt 00:02:26]} 8. h4 {[%clk
01:24:36]} {[%emt 00:04:48]} h6 {[%clk 01:26:41]} {[%emt 00:03:47]} 9. Nxc6
{[%clk 01:23:01]} {[%emt 00:02:05]} Bxc6 {[%clk 01:26:35]} {[%emt 00:00:35]} 10.
Be3 {[%clk 01:21:05]} {[%emt 00:02:26]} Be7 {[%clk 01:12:38]} {[%emt 00:14:28]}
11. Be2 {[%clk 01:20:05]} {[%emt 00:01:30]} d5 {[%clk 00:58:36]} {[%emt
00:14:33]} 12. e5 {[%clk 01:15:42]} {[%emt 00:04:52]} Nd7 {[%clk 00:57:07]}
{[%emt 00:01:59]} 13. Bd4 {[%clk 01:15:57]} {[%emt 00:00:15]} Bxh4 {[%clk
00:54:37]} {[%emt 00:03:01]} 14. O-O-O {[%clk 01:15:06]} {[%emt 00:01:19]} Be7
{[%clk 00:54:09]} {[%emt 00:00:58]} 15. f4 {[%clk 01:10:04]} {[%emt 00:05:32]}
Bc5 {[%clk 00:54:21]} {[%emt 00:00:18]} 16. Qg3 {[%clk 01:05:47]} {[%emt
00:04:46]} g6 {[%clk 00:51:39]} {[%emt 00:03:11]} 17. Ne4 {[%clk 01:02:06]}
{[%emt 00:04:06]} Qe7 {[%clk 00:37:23]} {[%emt 00:14:51]} 18. Nd6+ {[%clk
00:58:22]} {[%emt 00:04:15]} Kf8 {[%clk 00:37:06]} {[%emt 00:00:48]} 19. Qe3
{[%clk 00:56:15]} {[%emt 00:02:36]} Bxd4 {[%clk 00:28:53]} {[%emt 00:08:44]} 20.
Qxd4 {[%clk 00:56:36]} {[%emt 00:00:08]} Nf6 {[%clk 00:25:48]} {[%emt
00:03:35]} 21. g4 {[%clk 00:50:05]} {[%emt 00:07:01]} Ne4 {[%clk 00:26:12]}
{[%emt 00:00:06]} 22. Bf3 {[%clk 00:50:01]} {[%emt 00:00:33]} Rd8 {[%clk
00:21:39]} {[%emt 00:05:03]} 23. Nxe4 {[%clk 00:48:54]} {[%emt 00:01:37]} Qc7
{[%clk 00:18:05]} {[%emt 00:04:04]} 24. Nd6 {[%clk 00:48:59]} {[%emt 00:00:24]}
Qb6 {[%clk 00:18:17]} {[%emt 00:00:19]} 25. Qxb6 {[%clk 00:48:58]} {[%emt
00:00:31]} axb6 {[%clk 00:18:45]} {[%emt 00:00:03]} 26. g5 {[%clk 00:47:26]}
{[%emt 00:02:01]} h5 {[%clk 00:19:06]} {[%emt 00:00:10]} 27. Rd4 {[%clk
00:47:40]} {[%emt 00:00:15]} Ra8 {[%clk 00:18:25]} {[%emt 00:01:11]} 28. a3
{[%clk 00:47:55]} {[%emt 00:00:15]} Ke7 {[%clk 00:18:45]} {[%emt 00:00:10]} 29.
Rb4 {[%clk 00:48:13]} {[%emt 00:00:13]} Ra6 {[%clk 00:18:48]} {[%emt 00:00:27]}
30. Rh2 {[%clk 00:47:38]} {[%emt 00:01:03]} Rha8 {[%clk 00:19:05]} {[%emt
00:00:14]} 31. c3 {[%clk 00:46:36]} {[%emt 00:01:32]} Ra4 {[%clk 00:19:07]}
{[%emt 00:00:28]} 32. Kd2 {[%clk 00:46:27]} {[%emt 00:00:40]} b5 {[%clk
00:18:02]} {[%emt 00:01:35]} 33. Bd1 {[%clk 00:45:28]} {[%emt 00:01:28]} Rxb4
{[%clk 00:17:59]} {[%emt 00:00:33]} 34. cxb4 {[%clk 00:45:50]} {[%emt
00:00:08]} Ra6 {[%clk 00:18:03]} {[%emt 00:00:25]} 35. Be2 {[%clk 00:46:02]}
{[%emt 00:00:19]} Rb6 {[%clk 00:18:30]} {[%emt 00:00:05]} 36. Nc8+ {[%clk
00:46:25]} {[%emt 00:00:06]} Kd8 {[%clk 00:18:57]} {[%emt 00:00:02]} 37. Nxb6
{[%clk 00:46:44]} {[%emt 00:00:12]} 1-0

[Event "IV Elllobregat Open Chess Tmnt"]
[Site "Sant Boi de Llobregat, Spain"]
[Date "2023.12.02"]
[Round "3.53"]
[White "Pogorelov, Ruslan"]
[Black "Injac, Teodora"]
[Result "1-0"]
[TimeControl "90min/40moves + 15min/end + 30sec from move 1"]
[WhiteFideId "14100363"]
[BlackFideId "932400"]
[WhiteElo "2271"]
[BlackElo "2431"]

1. Nf3 {[%clk 01:30:51]} {[%emt 00:00:08]} d5 {[%clk 01:30:26]} {[%emt
00:00:35]} 2. d4 {[%clk 01:31:14]} {[%emt 00:00:06]} Nf6 {[%clk 01:30:50]}
{[%emt 00:00:06]} 3. c4 {[%clk 01:31:36]} {[%emt 00:00:08]} e6 {[%clk
01:31:04]} {[%emt 00:00:15]} 4. Nc3 {[%clk 01:32:00]} {[%emt 00:00:08]} Nbd7
{[%clk 01:31:14]} {[%emt 00:00:20]} 5. cxd5 {[%clk 01:32:17]} {[%emt 00:00:13]}
exd5 {[%clk 01:31:37]} {[%emt 00:00:06]} 6. Bg5 {[%clk 01:32:38]} {[%emt
00:00:09]} c6 {[%clk 01:30:37]} {[%emt 00:01:31]} 7. Qc2 {[%clk 01:32:53]}
{[%emt 00:00:15]} Be7 {[%clk 01:29:10]} {[%emt 00:01:56]} 8. e3 {[%clk
01:33:10]} {[%emt 00:00:12]} Nh5 {[%clk 01:26:25]} {[%emt 00:03:15]} 9. Bxe7
{[%clk 01:33:08]} {[%emt 00:00:33]} Qxe7 {[%clk 01:26:51]} {[%emt 00:00:04]} 10.
Be2 {[%clk 01:32:33]} {[%emt 00:01:04]} g6 {[%clk 01:24:53]} {[%emt 00:02:28]}
11. O-O {[%clk 01:32:24]} {[%emt 00:00:39]} Ndf6 {[%clk 01:18:59]} {[%emt
00:06:24]} 12. Bd3 {[%clk 01:30:59]} {[%emt 00:01:55]} Ng7 {[%clk 01:17:47]}
{[%emt 00:01:42]} 13. Rab1 {[%clk 01:27:33]} {[%emt 00:03:56]} Bf5 {[%clk
01:10:44]} {[%emt 00:07:34]} 14. b4 {[%clk 01:27:48]} {[%emt 00:00:14]} a6
{[%clk 00:59:48]} {[%emt 00:11:26]} 15. a4 {[%clk 01:26:21]} {[%emt 00:01:57]}
O-O {[%clk 00:59:31]} {[%emt 00:00:47]} 16. Rfc1 {[%clk 01:21:39]} {[%emt
00:05:12]} Rfc8 {[%clk 00:55:58]} {[%emt 00:04:04]} 17. Bxf5 {[%clk 01:06:35]}
{[%emt 00:15:33]} Nxf5 {[%clk 00:56:13]} {[%emt 00:00:15]} 18. Qb3 {[%clk
01:06:37]} {[%emt 00:00:26]} b5 {[%clk 00:52:51]} {[%emt 00:03:54]} 19. Ne5
{[%clk 00:57:42]} {[%emt 00:09:24]} Nd6 {[%clk 00:52:18]} {[%emt 00:01:03]} 20.
Ra1 {[%clk 00:57:41]} {[%emt 00:00:31]} Qe8 {[%clk 00:41:24]} {[%emt 00:11:26]}
21. Nd3 {[%clk 00:56:55]} {[%emt 00:01:14]} Nc4 {[%clk 00:41:09]} {[%emt
00:00:46]} 22. Nc5 {[%clk 00:56:59]} {[%emt 00:00:25]} Rc7 {[%clk 00:38:14]}
{[%emt 00:03:25]} 23. Re1 {[%clk 00:52:08]} {[%emt 00:05:20]} Re7 {[%clk
00:38:11]} {[%emt 00:00:34]} 24. Qc2 {[%clk 00:51:15]} {[%emt 00:01:22]} Kg7
{[%clk 00:37:15]} {[%emt 00:01:27]} 25. Qa2 {[%clk 00:38:07]} {[%emt 00:13:38]}
Nb6 {[%clk 00:32:54]} {[%emt 00:04:52]} 26. Qb1 {[%clk 00:28:37]} {[%emt
00:09:59]} Qb8 {[%clk 00:22:44]} {[%emt 00:10:41]} 27. h3 {[%clk 00:28:43]}
{[%emt 00:00:23]} Nc4 {[%clk 00:21:41]} {[%emt 00:01:33]} 28. a5 {[%clk
00:17:23]} {[%emt 00:11:51]} Qe8 {[%clk 00:20:52]} {[%emt 00:01:19]} 29. Qd3
{[%clk 00:12:00]} {[%emt 00:05:51]} Raa7 {[%clk 00:10:52]} {[%emt 00:10:32]} 30.
Re2 {[%clk 00:11:48]} {[%emt 00:00:42]} Nd7 {[%clk 00:07:43]} {[%emt 00:03:40]}
31. Nb3 {[%clk 00:10:26]} {[%emt 00:01:51]} f5 {[%clk 00:07:41]} {[%emt
00:00:33]} 32. Rae1 {[%clk 00:10:13]} {[%emt 00:00:42]} Qf7 {[%clk 00:04:45]}
{[%emt 00:03:27]} 33. f3 {[%clk 00:09:31]} {[%emt 00:01:12]} Nd6 {[%clk
00:04:41]} {[%emt 00:00:35]} 34. Nd1 {[%clk 00:07:26]} {[%emt 00:02:34]} Nf6
{[%clk 00:04:05]} {[%emt 00:01:07]} 35. Qc3 {[%clk 00:05:07]} {[%emt 00:02:48]}
Nc4 {[%clk 00:04:14]} {[%emt 00:00:22]} 36. Nc5 {[%clk 00:04:19]} {[%emt
00:01:18]} Kg8 {[%clk 00:04:23]} {[%emt 00:00:21]} 37. Nf2 {[%clk 00:02:47]}
{[%emt 00:02:01]} Nh5 {[%clk 00:04:11]} {[%emt 00:00:43]} 38. e4 {[%clk
00:01:58]} {[%emt 00:01:18]} Nf4 {[%clk 00:04:08]} {[%emt 00:00:34]} 39. Rc2
{[%clk 00:02:00]} {[%emt 00:00:27]} Qf6 {[%clk 00:03:36]} {[%emt 00:01:03]} 40.
Kh2 {[%clk 00:15:57]} {[%emt 00:01:32]} Nh5 {[%clk 00:15:46]} {[%emt 00:03:20]}
41. e5 {[%clk 00:07:26]} {[%emt 00:09:01]} Qg5 {[%clk 00:16:10]} {[%emt
00:00:06]} 42. Nh1 {[%clk 00:06:54]} {[%emt 00:01:01]} f4 {[%clk 00:14:02]}
{[%emt 00:02:39]} 43. Rce2 {[%clk 00:06:57]} {[%emt 00:00:26]} Ng7 {[%clk
00:12:20]} {[%emt 00:02:13]} 44. g4 {[%clk 00:06:06]} {[%emt 00:01:21]} fxg3+
{[%clk 00:12:13]} {[%emt 00:00:38]} 45. Nxg3 {[%clk 00:06:22]} {[%emt
00:00:13]} Qf4 {[%clk 00:05:25]} {[%emt 00:07:18]} 46. Nd3 {[%clk 00:06:15]}
{[%emt 00:00:36]} Qh4 {[%clk 00:05:54]} {[%emt 00:00:02]} 47. f4 {[%clk
00:06:07]} {[%emt 00:00:38]} Ra8 {[%clk 00:05:50]} {[%emt 00:00:34]} 48. f5
{[%clk 00:01:20]} {[%emt 00:05:16]} Nxf5 {[%clk 00:03:24]} {[%emt 00:02:57]} 49.
Nxf5 {[%clk 00:01:29]} {[%emt 00:00:21]} gxf5 {[%clk 00:03:52]} {[%emt
00:00:02]} 50. Rg1+ {[%clk 00:01:12]} {[%emt 00:00:46]} Kh8 {[%clk 00:04:20]}
{[%emt 00:00:02]} 51. Qc1 {[%clk 00:01:01]} {[%emt 00:00:41]} Rae8 {[%clk
00:02:14]} {[%emt 00:02:37]} 52. Qf4 {[%clk 00:01:17]} {[%emt 00:00:13]} Qxf4+
{[%clk 00:00:59]} {[%emt 00:01:46]} 53. Nxf4 {[%clk 00:01:44]} {[%emt
00:00:02]} Rg7 {[%clk 00:00:52]} {[%emt 00:00:37]} 54. Rf1 {[%clk 00:01:07]}
{[%emt 00:01:06]} Rf7 {[%clk 00:00:38]} {[%emt 00:00:45]} 55. Nd3 {[%clk
00:01:09]} {[%emt 00:00:27]} Ref8 {[%clk 00:00:44]} {[%emt 00:00:26]} 56. Kg3
{[%clk 00:00:59]} {[%emt 00:00:40]} Rg7+ {[%clk 00:00:41]} {[%emt 00:00:33]} 57.
Kf4 {[%clk 00:00:51]} {[%emt 00:00:37]} Rfg8 {[%clk 00:01:10]} {[%emt
00:00:02]} 58. Rff2 {[%clk 00:01:02]} {[%emt 00:00:18]} Rg1 {[%clk 00:01:28]}
{[%emt 00:00:13]} 59. e6 {[%clk 00:00:38]} {[%emt 00:00:54]} Rd1 {[%clk
00:01:15]} {[%emt 00:00:42]} 60. Nc5 {[%clk 00:00:34]} {[%emt 00:00:34]} Rxd4+
{[%clk 00:00:54]} {[%emt 00:00:52]} 61. Kxf5 {[%clk 00:01:02]} {[%emt
00:00:01]} Rf8+ {[%clk 00:01:04]} {[%emt 00:00:21]} 62. Kg5 {[%clk 00:01:25]}
{[%emt 00:00:05]} Rg8+ {[%clk 00:01:33]} {[%emt 00:00:02]} 63. Kf6 {[%clk
00:01:43]} {[%emt 00:00:12]} Rh4 {[%clk 00:01:15]} {[%emt 00:00:48]} 64. Ke7
{[%clk 00:01:57]} {[%emt 00:00:15]} d4 {[%clk 00:01:03]} {[%emt 00:00:43]} 65.
Re4 {[%clk 00:01:47]} {[%emt 00:00:38]} Rxh3 {[%clk 00:00:35]} {[%emt
00:01:00]} 66. Rxd4 {[%clk 00:01:52]} {[%emt 00:00:24]} Rhg3 {[%clk 00:00:42]}
{[%emt 00:00:24]} 67. Nd7 {[%clk 00:00:56]} {[%emt 00:01:26]} Ne3 {[%clk
00:00:52]} {[%emt 00:00:20]} 68. Rf7 {[%clk 00:00:49]} {[%emt 00:00:33]} R3g5
{[%clk 00:00:39]} {[%emt 00:00:46]} 69. Nf6 {[%clk 00:00:59]} {[%emt 00:00:19]}
Nf5+ {[%clk 00:01:03]} {[%emt 00:00:08]} 70. Kd7 {[%clk 00:01:22]} {[%emt
00:00:06]} R5g7 {[%clk 00:00:34]} {[%emt 00:00:59]} 71. Rf4 {[%clk 00:01:04]}
{[%emt 00:00:46]} Rf8 {[%clk 00:00:32]} {[%emt 00:00:34]} 72. Rxf5 {[%clk
00:00:45]} {[%emt 00:00:49]} Rgxf7+ {[%clk 00:00:58]} {[%emt 00:00:05]} 73.
exf7 {[%clk 00:01:02]} {[%emt 00:00:12]} Rxf7+ {[%clk 00:01:21]} {[%emt
00:00:08]} 74. Ke6 {[%clk 00:01:19]} {[%emt 00:00:13]} Ra7 {[%clk 00:00:55]}
{[%emt 00:00:56]} 75. Rh5 {[%clk 00:01:01]} {[%emt 00:00:48]} 1-0

[Event "IV Elllobregat Open Chess Tmnt"]
[Site "Sant Boi de Llobregat, Spain"]
[Date "2023.12.02"]
[Round "3.54"]
[White "Kochavi, Ori"]
[Black "Boraso, Alessio"]
[Result "1-0"]
[TimeControl "90min/40moves + 15min/end + 30sec from move 1"]
[WhiteFideId "2816873"]
[BlackFideId "848077"]
[WhiteElo "2430"]
[BlackElo "2270"]

1. e4 {[%clk 01:30:57]} {[%emt 00:00:02]} e6 {[%clk 01:25:25]} {[%emt
00:05:35]} 2. d4 {[%clk 01:31:23]} {[%emt 00:00:05]} d5 {[%clk 01:25:51]}
{[%emt 00:00:04]} 3. Nd2 {[%clk 01:31:51]} {[%emt 00:00:02]} c5 {[%clk
01:25:41]} {[%emt 00:00:40]} 4. Ngf3 {[%clk 01:32:16]} {[%emt 00:00:05]} cxd4
{[%clk 01:25:34]} {[%emt 00:00:37]} 5. Nxd4 {[%clk 01:32:42]} {[%emt 00:00:04]}
Nf6 {[%clk 01:24:54]} {[%emt 00:01:09]} 6. exd5 {[%clk 01:33:08]} {[%emt
00:00:06]} Nxd5 {[%clk 01:23:25]} {[%emt 00:01:58]} 7. c3 {[%clk 01:30:30]}
{[%emt 00:03:08]} Be7 {[%clk 01:18:08]} {[%emt 00:05:46]} 8. Nc4 {[%clk
01:24:11]} {[%emt 00:06:49]} a6 {[%clk 01:10:10]} {[%emt 00:08:28]} 9. a4
{[%clk 01:24:25]} {[%emt 00:00:17]} b6 {[%clk 01:09:42]} {[%emt 00:00:57]} 10.
Bd3 {[%clk 01:22:45]} {[%emt 00:02:10]} Qc7 {[%clk 01:07:21]} {[%emt 00:02:50]}
11. O-O {[%clk 01:21:01]} {[%emt 00:02:15]} Bb7 {[%clk 01:05:25]} {[%emt
00:02:26]} 12. Qh5 {[%clk 01:08:07]} {[%emt 00:13:24]} Nf6 {[%clk 01:01:40]}
{[%emt 00:04:15]} 13. Nxe6 {[%clk 01:05:04]} {[%emt 00:03:34]} Qc6 {[%clk
00:54:18]} {[%emt 00:07:51]} 14. Nxg7+ {[%clk 01:05:30]} {[%emt 00:00:04]} Kf8
{[%clk 00:52:40]} {[%emt 00:02:07]} 15. Qh3 {[%clk 01:05:56]} {[%emt 00:00:04]}
Rg8 {[%clk 00:41:01]} {[%emt 00:12:09]} 16. Bh6 {[%clk 01:04:30]} {[%emt
00:01:56]} Ng4 {[%clk 00:39:01]} {[%emt 00:02:30]} 17. Be4 {[%clk 00:42:39]}
{[%emt 00:22:22]} Qxh6 {[%clk 00:31:57]} {[%emt 00:07:33]} 18. Bxb7 {[%clk
00:42:57]} {[%emt 00:00:13]} Qxh3 {[%clk 00:26:04]} {[%emt 00:06:23]} 19. gxh3
{[%clk 00:43:22]} {[%emt 00:00:05]} Ra7 {[%clk 00:26:07]} {[%emt 00:00:27]} 20.
Bg2 {[%clk 00:42:33]} {[%emt 00:01:20]} Nh6 {[%clk 00:17:09]} {[%emt 00:09:28]}
21. Nh5 {[%clk 00:42:54]} {[%emt 00:00:08]} f5 {[%clk 00:17:04]} {[%emt
00:00:35]} 22. Nxb6 {[%clk 00:38:20]} {[%emt 00:05:04]} f4 {[%clk 00:04:28]}
{[%emt 00:13:06]} 23. Kh1 {[%clk 00:37:22]} {[%emt 00:01:28]} Bd6 {[%clk
00:02:57]} {[%emt 00:02:01]} 24. Nc8 {[%clk 00:37:38]} {[%emt 00:00:13]} 1-0